bitfinex/quotes_SOLUSD_20230402
["timestamp","ask_amount","ask_price","bid_price","bid_amount"]
[1680454807030,27.0,20.569,20.558,10.0]
[1680454807234,27.0,20.569,20.559,20.0]
[1680454808543,27.0,20.569,20.558,10.0]
[1680454808722,27.0,20.569,20.559,20.0]
[1680454809442,27.0,20.569,20.558,10.0]
[1680454809643,27.0,20.569,20.559,20.0]
[1680454810443,27.0,20.569,20.557,20.0]
[1680454810638,27.0,20.569,20.558,10.0]
[1680454810839,27.0,20.569,20.559,20.0]
[1680454811237,27.0,20.569,20.553,19.447311]
[1680454813643,10.0,20.569,20.553,19.447311]
[1680454813839,129.7513,20.57,20.554,27.0]
[1680454814552,10.0,20.569,20.554,27.0]
[1680454814957,10.0,20.569,20.553,19.447311]
[1680454815141,10.0,20.567,20.553,19.447311]
[1680454815336,17.0,20.566,20.553,19.447311]
[1680454815540,10.0,20.565,20.553,19.447311]
[1680454815740,17.0,20.564,20.553,19.447311]
[1680454819552,10.0,20.565,20.553,19.447311]
[1680454819956,17.0,20.564,20.553,19.447311]
[1680454823766,17.0,20.564,20.551,37.74361067]
[1680454823945,17.0,20.564,20.553,10.0]
[1680454824257,10.0,20.565,20.553,10.0]
[1680454824459,10.0,20.563,20.553,10.0]
[1680454824660,10.0,20.565,20.553,10.0]
[1680454824860,10.0,20.563,20.553,10.0]
[1680454825760,17.0,20.564,20.553,10.0]
[1680454826257,17.0,20.564,20.552,20.0]
[1680454826848,17.0,20.564,20.551,10.0]
[1680454827049,17.0,20.564,20.552,20.0]
[1680454828262,10.0,20.563,20.552,20.0]
[1680454828564,10.0,20.561,20.55,10.0]
[1680454828772,10.0,20.561,20.551,20.0]
[1680454828958,10.0,20.561,20.549,20.0]
[1680454828959,10.0,20.559,20.549,20.0]
[1680454829265,17.0,20.558,20.549,20.0]
[1680454829465,17.0,20.558,20.548,10.0]
[1680454829763,17.0,20.558,20.549,20.0]
[1680454830948,17.0,20.558,20.547,20.0]
[1680454831147,17.0,20.558,20.548,10.0]
[1680454831349,119.617,20.559,20.549,20.0]
[1680454831760,119.617,20.559,20.55,10.0]
[1680454831948,119.617,20.559,20.551,20.0]
[1680454832866,116.7621,20.562,20.551,20.0]
[1680454834666,10.0,20.569,20.551,20.0]
[1680454834868,10.0,20.565,20.551,20.0]
[1680454835167,10.0,20.563,20.551,20.0]
[1680454838970,10.0,20.565,20.551,20.0]
[1680454839269,10.0,20.563,20.551,20.0]
[1680454841371,17.0,20.564,20.551,20.0]
[1680454843370,10.0,20.569,20.551,20.0]
[1680454843555,10.0,20.569,20.552,67.59788088]
[1680454843759,10.0,20.566,20.554,10.0]
[1680454846370,10.0,20.566,20.552,67.59788088]
[1680454846574,10.0,20.566,20.554,10.0]
[1680454849463,17.0,20.567,20.554,10.0]
[1680454849974,10.0,20.568,20.554,10.0]
[1680454852677,27.0,20.569,20.554,10.0]
[1680454854674,10.0,20.568,20.554,10.0]
[1680454857273,10.0,20.569,20.556,10.0]
[1680454860885,129.7513,20.57,20.556,10.0]
[1680454864785,129.7513,20.57,20.555,17.0]
[1680454864989,10.0,20.569,20.555,17.0]
[1680454869900,17.0,20.568,20.554,14.76122723]
[1680454870192,10.0,20.567,20.553,20.0]
[1680454872794,10.0,20.567,20.553,34.35362587]
[1680454876598,10.0,20.567,20.553,41.65326351]
[1680454878201,10.0,20.565,20.553,41.65326351]
[1680454878390,10.0,20.563,20.553,41.65326351]
[1680454881087,17.0,20.564,20.553,41.65326351]
[1680454884601,17.0,20.564,20.553,34.35362587]
[1680454886102,10.0,20.565,20.553,34.35362587]
[1680454886403,10.0,20.563,20.553,34.35362587]
[1680454886797,10.0,20.563,20.553,20.0]
[1680454886996,10.0,20.563,20.552,10.0]
[1680454887196,10.0,20.563,20.553,20.0]
[1680454887391,17.0,20.564,20.553,20.0]
[1680454891006,10.0,20.567,20.556,10.0]
[1680454892606,10.0,20.567,20.555,57.59788088]
[1680454892806,10.0,20.569,20.555,57.59788088]
[1680454892997,129.7513,20.57,20.557,10.0]
[1680454893307,129.7513,20.57,20.559,10.0]
[1680454893608,129.7513,20.57,20.561,10.0]
[1680454893809,129.7513,20.57,20.562,20.0]
[1680454894006,129.7513,20.57,20.562,27.29963764]
[1680454897499,17.015,20.57,20.562,27.29963764]
[1680454898609,17.015,20.57,20.562,20.0]
[1680454898812,17.015,20.57,20.562,10.0]
[1680454899112,17.015,20.57,20.563,20.0]
[1680454900407,17.015,20.57,20.56,28.15]
[1680454900615,17.015,20.57,20.562,10.0]
[1680454900815,17.015,20.57,20.563,20.0]
[1680454902404,17.015,20.57,20.562,10.0]
[1680454902609,17.015,20.57,20.563,20.0]
[1680454903599,17.015,20.57,20.56,20.0]
[1680454906011,17.015,20.57,20.553,81.87351583]
[1680454906215,17.0,20.569,20.553,81.87351583]
[1680454906402,10.0,20.568,20.553,81.87351583]
[1680454906595,10.0,20.566,20.553,81.87351583]
[1680454906810,17.0,20.565,20.553,71.87351583]
[1680454908116,17.0,20.565,20.554,7.29376949]
[1680454908302,17.0,20.565,20.555,10.0]
[1680454909018,10.0,20.566,20.555,10.0]
[1680454909219,10.0,20.564,20.555,10.0]
[1680454909716,10.0,20.566,20.555,10.0]
[1680454909919,17.0,20.565,20.555,10.0]
[1680454910118,10.0,20.564,20.555,10.0]
[1680454910615,10.0,20.564,20.554,10.0]
[1680454910616,17.0,20.565,20.554,17.29376949]
[1680454911018,10.0,20.566,20.554,17.29376949]
[1680454911319,10.0,20.564,20.554,17.29376949]
[1680454912009,17.0,20.565,20.554,17.29376949]
[1680454913318,17.0,20.565,20.554,7.29376949]
[1680454913818,10.0,20.566,20.554,7.29376949]
[1680454914020,10.0,20.568,20.554,7.29376949]
[1680454914420,10.0,20.568,20.555,10.0]
[1680454914821,10.0,20.568,20.555,17.29376949]
[1680454915821,126.1096,20.57,20.555,17.29376949]
[1680454916020,10.0,20.567,20.555,17.29376949]
[1680454916320,126.1096,20.57,20.555,17.29376949]
[1680454916526,126.1096,20.57,20.557,10.0]
[1680454916711,126.1096,20.57,20.559,10.0]
[1680454916907,126.1096,20.57,20.56,20.0]
[1680454917123,126.1096,20.57,20.561,10.0]
[1680454917325,17.015,20.57,20.561,10.0]
[1680454917520,17.015,20.57,20.562,20.0]
[1680454917720,17.015,20.57,20.562,27.29376949]
[1680454932139,17.015,20.57,20.562,20.0]
[1680454932323,17.015,20.57,20.56,10.0]
[1680454932526,17.015,20.57,20.561,20.0]
[1680454933525,17.015,20.57,20.561,10.0]
[1680454933820,17.015,20.57,20.562,20.0]
[1680454934439,17.015,20.57,20.56,20.0]
[1680454934733,17.015,20.57,20.561,10.0]
[1680454934938,17.015,20.57,20.562,20.0]
[1680454935941,17.015,20.57,20.561,20.0]
[1680454937446,17.015,20.57,20.561,10.0]
[1680454937641,17.015,20.57,20.562,20.0]
[1680454937844,17.015,20.57,20.56,20.0]
[1680454947345,17.015,20.57,20.56,27.29376949]
[1680454952239,17.015,20.57,20.56,49.74376949]
[1680454968257,17.015,20.57,20.562,10.0]
[1680454968559,17.015,20.57,20.563,20.0]
[1680454969561,17.015,20.57,20.563,10.0]
[1680454969761,17.015,20.57,20.562,30.0]
[1680454970260,17.015,20.57,20.562,20.0]
[1680454970754,17.015,20.57,20.563,27.0]
[1680454971058,17.015,20.57,20.564,10.0]
[1680454971257,17.015,20.57,20.565,17.0]
[1680454972154,17.015,20.57,20.564,10.0]
[1680454974750,17.015,20.57,20.563,10.0]
[1680454975048,17.015,20.57,20.565,10.0]
[1680454975663,17.015,20.57,20.564,17.0]
[1680454984372,17.015,20.57,20.562,20.0]
[1680454984572,17.015,20.57,20.561,20.0]
[1680454987165,17.015,20.57,20.561,27.29376949]
[1680454992476,17.015,20.57,20.561,20.0]
[1680454993078,17.015,20.57,20.561,7.29376949]
[1680454993263,17.015,20.57,20.562,20.0]
[1680454998659,17.015,20.57,20.564,10.0]
[1680454999678,17.015,20.57,20.566,10.0]
[1680454999874,17.015,20.57,20.567,17.0]
[1680455000276,17.015,20.57,20.566,10.0]
[1680455000576,10.0,20.579,20.568,10.0]
[1680455000774,110.4129,20.58,20.568,10.0]
[1680455002885,110.4129,20.58,20.57,32.51]
[1680455003085,110.4129,20.58,20.572,10.0]
[1680455003573,110.4129,20.58,20.573,20.0]
[1680455004174,22.51,20.59,20.573,20.0]
[1680455004476,22.51,20.59,20.572,10.0]
[1680455004781,10.0,20.588,20.574,10.0]
[1680455005481,10.0,20.588,20.572,10.0]
[1680455005681,10.0,20.588,20.574,10.0]
[1680455006268,10.0,20.588,20.572,10.0]
[1680455006468,10.0,20.588,20.574,10.0]
[1680455007986,10.0,20.588,20.573,20.0]
[1680455010980,10.0,20.588,20.573,10.0]
[1680455011782,10.0,20.588,20.572,20.0]
[1680455015382,115.8284,20.589,20.573,27.0]
[1680455015581,115.8284,20.589,20.573,10.0]
[1680455015775,10.0,20.588,20.572,20.0]
[1680455016384,10.0,20.588,20.57,10.0]
[1680455016690,10.0,20.58,20.571,20.0]
[1680455017486,10.0,20.588,20.57,10.0]
[1680455017690,10.0,20.588,20.572,10.0]
[1680455017895,10.0,20.588,20.573,20.0]
[1680455018582,10.0,20.588,20.572,10.0]
[1680455018776,10.0,20.588,20.573,20.0]
[1680455024385,10.0,20.588,20.572,10.0]
[1680455024586,10.0,20.588,20.574,10.0]
[1680455025696,10.0,20.588,20.573,17.0]
[1680455031005,10.0,20.588,20.573,10.0]
[1680455032689,10.0,20.588,20.571,37.29376949]
[1680455032885,10.0,20.588,20.573,10.0]
[1680455035289,10.0,20.588,20.575,10.0]
[1680455035815,10.0,20.588,20.574,17.0]
[1680455038923,115.8284,20.589,20.574,17.0]
[1680455039420,115.8284,20.589,20.575,10.0]
[1680455039611,115.8284,20.589,20.576,17.0]
[1680455042313,10.0,20.588,20.576,17.0]
[1680455042527,10.0,20.588,20.575,10.0]
[1680455042717,10.0,20.588,20.574,17.0]
[1680455046619,115.8284,20.589,20.575,10.0]
[1680455046820,115.8284,20.589,20.577,10.0]
[1680455047402,115.8284,20.589,20.575,10.0]
[1680455047709,10.0,20.587,20.573,10.0]
[1680455050729,10.0,20.587,20.573,17.29376949]
[1680455054125,10.0,20.587,20.573,7.29376949]
[1680455058123,10.0,20.585,20.573,7.29376949]
[1680455061235,10.0,20.587,20.573,7.29376949]
[1680455062734,10.0,20.585,20.573,7.29376949]
[1680455064038,10.0,20.587,20.573,7.29376949]
[1680455064229,10.0,20.585,20.573,7.29376949]
[1680455065132,10.0,20.587,20.573,7.29376949]
[1680455065333,10.0,20.585,20.573,7.29376949]
[1680455067440,17.0,20.584,20.573,7.29376949]
[1680455067738,17.0,20.584,20.572,20.0]
[1680455067739,10.0,20.583,20.572,20.0]
[1680455068034,10.0,20.581,20.573,20.0]
[1680455068423,10.0,20.579,20.573,20.0]
[1680455070125,10.0,20.581,20.573,20.0]
[1680455070326,10.0,20.579,20.573,20.0]
[1680455071342,17.0,20.58,20.573,20.0]
[1680455076746,16.5,20.58,20.573,20.0]
[1680455079141,10.0,20.581,20.573,20.0]
[1680455079337,10.0,20.579,20.573,20.0]
[1680455081547,17.0,20.58,20.573,20.0]
[1680455084644,17.0,20.58,20.573,27.29376949]
[1680455085548,125.8284,20.589,20.573,27.29376949]
[1680455085850,17.0,20.584,20.573,27.29376949]
[1680455096049,10.0,20.585,20.573,27.29376949]
[1680455096254,10.0,20.583,20.573,27.29376949]
[1680455096554,17.0,20.582,20.573,27.29376949]
[1680455100654,17.0,20.582,20.573,20.0]
[1680455101047,17.0,20.582,20.57,22.45]
[1680455101048,17.0,20.582,20.571,20.0]
[1680455102447,17.0,20.582,20.57,10.0]
[1680455102644,10.0,20.58,20.571,20.0]
[1680455102853,17.0,20.579,20.573,19.429653]
[1680455103459,10.0,20.579,20.573,19.429653]
[1680455103664,17.0,20.578,20.573,19.429653]
[1680455104747,10.0,20.578,20.573,19.429653]
[1680455105354,17.0,20.579,20.573,19.429653]
[1680455110362,108.7263,20.581,20.573,19.429653]
[1680455110554,115.8284,20.589,20.573,19.429653]
[1680455110754,115.8284,20.589,20.574,10.0]
[1680455112157,17.0,20.587,20.574,10.0]
[1680455114752,115.8284,20.589,20.574,10.0]
[1680455117459,10.0,20.587,20.574,10.0]
[1680455119773,17.0,20.588,20.574,10.0]
[1680455120862,10.0,20.588,20.574,10.0]
[1680455121853,17.0,20.589,20.574,10.0]
[1680455123071,17.0,20.589,20.574,17.29376949]
[1680455123580,10.0,20.588,20.574,17.29376949]
[1680455123757,10.0,20.588,20.574,7.29376949]
[1680455127965,10.0,20.588,20.573,19.430045]
[1680455127966,17.0,20.587,20.573,19.430045]
[1680455128162,10.0,20.586,20.573,19.430045]
[1680455128362,17.0,20.585,20.573,19.430045]
[1680455129769,17.0,20.585,20.574,7.29376949]
[1680455129975,17.0,20.585,20.575,10.0]
[1680455130762,10.0,20.586,20.574,17.29376949]
[1680455130967,17.0,20.585,20.574,17.29376949]
[1680455131583,17.0,20.585,20.574,7.29376949]
[1680455136095,17.0,20.585,20.574,7.29376949]
[1680455137272,10.0,20.586,20.574,7.29376949]
[1680455137584,17.0,20.585,20.574,7.29376949]
[1680455138291,10.0,20.586,20.574,7.29376949]
[1680455140591,10.0,20.586,20.573,19.430045]
[1680455140890,17.0,20.587,20.575,10.0]
[1680455143190,17.0,20.587,20.575,17.29376949]
[1680455145478,17.0,20.587,20.575,7.29376949]
[1680455148191,10.0,20.587,20.575,7.29376949]
[1680455149492,17.0,20.588,20.575,7.29376949]
[1680455149690,17.0,20.588,20.576,10.0]
[1680455149896,10.0,20.588,20.576,10.0]
[1680455150082,10.0,20.588,20.576,17.29376949]
[1680455152094,17.0,20.589,20.576,17.29376949]
[1680455154198,10.0,20.589,20.576,17.29376949]
[1680455154893,115.3161,20.591,20.581,10.0]
[1680455155108,115.3161,20.591,20.583,10.0]
[1680455155290,22.25,20.6,20.582,20.0]
[1680455155499,10.0,20.597,20.582,20.0]
[1680455155689,10.0,20.596,20.582,27.29376949]
[1680455156507,10.0,20.596,20.584,10.0]
[1680455156889,10.0,20.596,20.583,10.0]
[1680455157291,10.0,20.596,20.583,17.29376949]
[1680455157701,10.0,20.596,20.583,7.29376949]
[1680455157702,10.0,20.594,20.583,7.29376949]
[1680455161397,10.0,20.592,20.583,7.29376949]
[1680455163788,10.0,20.594,20.583,7.29376949]
[1680455163987,10.0,20.594,20.582,20.0]
[1680455163988,17.0,20.593,20.582,20.0]
[1680455164285,10.0,20.592,20.581,20.0]
[1680455164481,10.0,20.59,20.581,20.0]
[1680455165996,10.0,20.59,20.578,38.23992922]
[1680455166197,10.0,20.588,20.576,10.0]
[1680455166902,109.4836,20.592,20.58,22.45]
[1680455167093,109.4836,20.592,20.582,10.0]
[1680455167293,109.4836,20.592,20.583,20.0]
[1680455168197,109.4836,20.592,20.584,10.0]
[1680455170406,109.4836,20.592,20.583,20.0]
[1680455176112,28.08,20.6,20.583,20.0]
[1680455176306,28.08,20.6,20.585,10.0]
[1680455177304,10.0,20.597,20.585,10.0]
[1680455180320,28.08,20.6,20.585,10.0]
[1680455180618,113.7095,20.602,20.585,10.0]
[1680455180808,113.7095,20.602,20.587,10.0]
[1680455181002,113.7095,20.602,20.588,17.0]
[1680455181203,113.7095,20.602,20.589,10.0]
[1680455182420,113.7095,20.602,20.588,17.0]
[1680455184420,113.7095,20.602,20.589,30.0]
[1680455184816,113.7095,20.602,20.589,37.29376949]
[1680455185622,113.7095,20.602,20.591,10.0]
[1680455186019,113.7095,20.602,20.592,20.0]
[1680455187112,113.7095,20.602,20.589,17.29376949]
[1680455187113,113.7095,20.602,20.591,10.0]
[1680455187314,113.7095,20.602,20.592,20.0]
[1680455188024,113.7095,20.602,20.591,10.0]
[1680455188314,113.7095,20.602,20.592,20.0]
[1680455189416,113.7095,20.602,20.59,20.0]
[1680455189623,113.7095,20.602,20.591,10.0]
[1680455189814,113.7095,20.602,20.592,20.0]
[1680455190916,113.7095,20.602,20.59,20.0]
[1680455191127,113.7095,20.602,20.591,10.0]
[1680455191414,113.7095,20.602,20.592,20.0]
[1680455192024,113.7095,20.602,20.591,10.0]
[1680455192221,113.7095,20.602,20.592,20.0]
[1680455192804,113.7095,20.602,20.591,10.0]
[1680455193020,113.7095,20.602,20.592,20.0]
[1680455193820,113.7095,20.602,20.591,10.0]
[1680455194016,113.7095,20.602,20.592,20.0]
[1680455195422,113.7095,20.602,20.59,20.0]
[1680455195614,10.0,20.601,20.59,20.0]
[1680455195816,17.0,20.6,20.59,20.0]
[1680455196026,10.0,20.599,20.588,20.0]
[1680455196214,10.0,20.597,20.588,20.0]
[1680455196529,10.0,20.597,20.591,0.38770555]
[1680455197631,10.0,20.597,20.58,27.87]
[1680455198618,10.0,20.597,20.584,0.39006271]
[1680455211436,10.0,20.599,20.584,0.39006271]
[1680455211738,97.09301101,20.61,20.584,87.26504641]
[1680455211936,97.09301101,20.61,20.585,10.0]
[1680455212136,97.09301101,20.61,20.587,10.0]
[1680455216846,97.09301101,20.61,20.588,0.38871557]
[1680455220729,10.0,20.601,20.588,0.38871557]
[1680455226951,10.0,20.601,20.586,7.29376949]
[1680455227856,10.0,20.601,20.589,0.38837886]
[1680455233954,113.7095,20.602,20.589,0.38837886]
[1680455235853,113.7095,20.602,20.59,0.38804219]
[1680455236240,113.7095,20.602,20.59,22.68804219]
[1680455236544,113.7095,20.602,20.592,10.0]
[1680455236746,113.7095,20.602,20.593,20.0]
[1680455237438,113.7095,20.602,20.592,20.0]
[1680455237952,113.7095,20.602,20.593,10.0]
[1680455238156,113.7095,20.602,20.594,20.0]
[1680455238939,113.7095,20.602,20.592,20.0]
[1680455239340,10.0,20.601,20.592,20.0]
[1680455239839,10.0,20.601,20.595,0.38635932]
[1680455240852,10.0,20.601,20.592,20.0]
[1680455241055,10.0,20.601,20.591,20.0]
[1680455241949,10.0,20.601,20.596,0.38602285]
[1680455242958,10.0,20.602,20.589,20.38837886]
[1680455243356,10.0,20.602,20.589,27.68214835]
[1680455243860,10.0,20.602,20.597,0.3856864]
[1680455244364,10.0,20.605,20.597,0.3856864]
[1680455244856,10.0,20.602,20.591,20.0]
[1680455245042,10.0,20.602,20.59,20.0]
[1680455245245,10.0,20.602,20.591,10.0]
[1680455245549,10.0,20.602,20.592,20.0]
[1680455245946,10.0,20.602,20.598,0.38534999]
[1680455247961,10.0,20.602,20.59,20.0]
[1680455250661,10.0,20.605,20.59,20.0]
[1680455251768,120.8373,20.606,20.59,20.0]
[1680455253275,6.795,20.604,20.59,20.0]
[1680455254273,10.0,20.602,20.59,19.92605428]
[1680455257976,6.795,20.604,20.59,19.92605428]
[1680455258269,6.795,20.604,20.592,10.0]
[1680455258476,6.795,20.604,20.593,20.0]
[1680455259064,10.0,20.602,20.592,20.0]
[1680455261777,6.795,20.604,20.592,20.0]
[1680455263967,6.795,20.604,20.592,10.0]
[1680455264263,6.795,20.604,20.593,20.0]
[1680455264982,6.795,20.604,20.592,10.0]
[1680455265183,6.795,20.604,20.593,20.0]
[1680455265983,6.795,20.604,20.592,10.0]
[1680455266186,6.795,20.604,20.593,20.0]
[1680455267478,10.0,20.602,20.591,20.0]
[1680455267694,10.0,20.602,20.592,10.0]
[1680455267877,10.0,20.602,20.593,20.0]
[1680455268485,10.0,20.602,20.592,10.0]
[1680455268685,10.0,20.602,20.593,20.0]
[1680455269272,10.0,20.602,20.589,20.38837886]
[1680455273093,10.0,20.602,20.589,27.68214835]
[1680455274893,10.0,20.602,20.59,0.38804219]
[1680455275092,10.0,20.602,20.59,10.38804219]
[1680455275292,113.8637,20.603,20.592,10.0]
[1680455275590,113.8637,20.603,20.593,20.0]
[1680455276493,113.8637,20.603,20.592,10.0]
[1680455276695,113.8637,20.603,20.593,20.0]
[1680455278079,113.8637,20.603,20.592,30.0]
[1680455278280,113.8637,20.603,20.593,20.0]
[1680455278795,113.8637,20.603,20.594,0.38669583]
[1680455284705,10.0,20.602,20.594,0.38669583]
[1680455284902,17.0,20.601,20.594,0.38669583]
[1680455285200,10.0,20.6,20.594,0.38669583]
[1680455285606,10.0,20.6,20.593,20.0]
[1680455286598,10.0,20.602,20.593,20.0]
[1680455289408,10.0,20.6,20.592,20.0]
[1680455289706,17.0,20.599,20.592,20.0]
[1680455289887,10.0,20.598,20.592,20.0]
[1680455290286,10.0,20.596,20.592,20.0]
[1680455290693,10.0,20.596,20.593,0.38703237]
[1680455291516,17.0,20.597,20.592,20.0]
[1680455293614,17.0,20.599,20.593,0.38703237]
[1680455294608,17.0,20.599,20.592,20.0]
[1680455295404,10.0,20.6,20.592,20.0]
[1680455295703,10.0,20.6,20.593,0.38703237]
[1680455296609,10.0,20.6,20.589,0.38837886]
[1680455297609,10.0,20.6,20.59,0.38804219]
[1680455299613,10.0,20.602,20.59,0.38804219]
[1680455299804,10.0,20.6,20.59,0.38804219]
[1680455301513,10.0,20.602,20.59,0.38804219]
[1680455301699,10.0,20.6,20.59,20.38804219]
[1680455302896,10.0,20.6,20.59,0.38804219]
[1680455303813,10.0,20.598,20.59,0.38804219]
[1680455304423,10.0,20.6,20.59,0.38804219]
[1680455305618,10.0,20.602,20.59,0.38804219]
[1680455308416,113.8637,20.603,20.59,10.38804219]
[1680455308721,113.8637,20.603,20.592,10.0]
[1680455308916,113.8637,20.603,20.593,20.0]
[1680455310121,113.8637,20.603,20.591,20.0]
[1680455310719,113.8637,20.603,20.594,0.38669583]
[1680455311516,113.8637,20.603,20.593,20.0]
[1680455313401,113.8637,20.603,20.592,10.0]
[1680455313602,113.8637,20.603,20.594,10.0]
[1680455315330,113.8637,20.603,20.592,10.0]
[1680455315512,113.8637,20.603,20.594,10.0]
[1680455315714,113.8637,20.603,20.595,0.38635932]
[1680455317529,113.8637,20.603,20.593,20.0]
[1680455318725,113.8637,20.603,20.595,10.0]
[1680455320525,10.0,20.608,20.594,17.0]
[1680455320828,10.0,20.608,20.593,20.0]
[1680455321612,10.0,20.608,20.595,0.38635932]
[1680455323716,10.0,20.608,20.591,20.0]
[1680455323917,10.0,20.608,20.593,10.0]
[1680455324518,10.0,20.608,20.594,20.0]
[1680455326633,10.0,20.608,20.593,20.0]
[1680455326833,10.0,20.608,20.592,10.0]
[1680455327025,10.0,20.608,20.593,20.0]
[1680455331934,10.0,20.608,20.592,10.0]
[1680455332126,10.0,20.608,20.593,20.0]
[1680455334034,10.0,20.602,20.591,20.0]
[1680455336418,10.0,20.608,20.591,20.0]
[1680455338018,10.0,20.608,20.593,10.0]
[1680455338222,10.0,20.608,20.594,20.0]
[1680455340541,10.0,20.608,20.594,10.0]
[1680455340844,17.0,20.603,20.593,20.0]
[1680455341042,10.0,20.602,20.591,20.0]
[1680455342441,10.0,20.602,20.588,20.0]
[1680455348439,115.803,20.603,20.589,10.38837886]
[1680455348642,115.803,20.603,20.591,10.0]
[1680455348845,115.803,20.603,20.592,20.0]
[1680455351536,115.803,20.603,20.592,10.0]
[1680455351735,115.803,20.603,20.593,20.0]
[1680455352448,115.803,20.603,20.592,10.0]
[1680455352646,115.803,20.603,20.593,20.0]
[1680455353954,115.803,20.603,20.592,10.0]
[1680455354152,115.803,20.603,20.593,20.0]
[1680455355955,115.803,20.603,20.592,10.0]
[1680455356254,115.803,20.603,20.593,20.0]
[1680455356456,115.803,20.603,20.594,10.0]
[1680455356754,115.803,20.603,20.593,20.0]
[1680455357440,115.803,20.603,20.592,10.0]
[1680455357635,115.803,20.603,20.593,20.0]
[1680455358562,115.803,20.603,20.592,10.0]
[1680455358749,115.803,20.603,20.593,20.0]
[1680455359568,115.803,20.603,20.592,10.0]
[1680455359856,115.803,20.603,20.593,20.0]
[1680455360459,115.803,20.603,20.592,10.0]
[1680455360657,115.803,20.603,20.593,20.0]
[1680455362460,115.803,20.603,20.592,10.0]
[1680455362661,115.803,20.603,20.593,20.0]
[1680455364461,115.803,20.603,20.592,10.0]
[1680455364656,115.803,20.603,20.593,20.0]
[1680455366961,22.4,20.6,20.589,0.38837886]
[1680455367162,10.0,20.599,20.589,0.38837886]
[1680455367362,10.0,20.597,20.589,0.38837886]
[1680455367770,17.0,20.596,20.589,0.38837886]
[1680455367962,10.0,20.595,20.589,0.38837886]
[1680455368170,10.0,20.593,20.589,0.38837886]
[1680455369061,10.0,20.593,20.59,0.31440563]
[1680455370170,10.0,20.595,20.59,0.31440563]
[1680455370370,10.0,20.593,20.59,0.31440563]
[1680455370550,10.0,20.591,20.59,0.31440563]
[1680455370966,10.0,20.593,20.59,0.31440563]
[1680455371263,10.0,20.591,20.59,0.31440563]
[1680455371567,10.0,20.593,20.59,0.31440563]
[1680455371869,17.0,20.592,20.59,0.31440563]
[1680455372054,32.4,20.6,20.59,0.31440563]